Workbook

Sheet Sheet1
A1: ATTACHMENT 1
A3: REGS | B3: REASON | C3: PREVIOUS BURDEN | D3: NEW BURDEN | E3: DIFFER- ENCE | F3: TYPE OF CHANGE
A4: 7 CFR | B4: Committee Ballots/Nominations
A5: 916.22 | B5: 916 - Nectarines (No form number) Decrease in respondents | C5: 20.96 | D5: 19.71 | E5: =D5-C5 -> -1.25 | F5: ADJ
A6: 917.22 | B6: 917 - Peaches (No form number) Decrease in respondents | C6: 23.28 | D6: 19.71 | E6: -3.57 | F6: ADJ
A7: 920.122 | B7: 920 - Kiwifruit (No form number) Decrease in respondents | C7: 37.58 | D7: 32.57 | E7: -5.01 | F7: ADJ
A8: 920.122 | B8: 920 - Kiwifruit (No form number) Decrease in respondents | C8: 37.58 | D8: 32.57 | E8: -5.01 | F8: ADJ
A9: 7 CFR | B9: Letter of Acceptance
A10: 920.25 | B10: 920 - Kiwifruit Form obsoleted | C10: 0.00 | D10: 0.00 | E10: 0.00 | F10: PC
A11: 7 CFR | B11: Marketing Agreement/Handler Agreement
A12: 900.14 | B12: 906 - TX Citrus (FV 81) Decrease in respondents | C12: 0.35 | D12: 0.30 | E12: =D12-C12 -> -0.05 | F12: ADJ
A13: 900.14 | B13: 915 - Avocados (FV-96) Form obsoleted | C13: 0.48 | D13: 0.00 | E13: -0.48 | F13: PC
A14: 900.14 | B14: 916 - Nectarines (FV-85) Inc. in respondents & number of responses | C14: 1.56 | D14: 4.19 | E14: 2.63 | F14: ADJ
A15: 900.14 | B15: 917- Peaches (Form FV-93) Increase in respondents and number of responses | C15: 1.56 | D15: 4.19 | E15: 2.63 | F15: ADJ
A16: 900.14 | B16: 920 - Kiwifruit (FV-71) Decrease in respondents | C16: 0.51 | D16: 0.33 | E16: -0.18 | F16: ADJ
A17: 900.14 | B17: 922 - Apricots (FV-151) Decrease in respondents | C17: 0.30 | D17: 0.28 | E17: -0.02 | F17: ADJ
A18: 900.14 | B18: 923 - Sweet Cherries (FV-21) Increase in respondents | C18: 0.73 | D18: 0.77 | E18: =D18-C18 -> 0.04 | F18: ADJ
A19: 900.14 | B19: 924 - Fresh Prunes (FV-14) Decrease in respondents | C19: 0.10 | D19: 0.08 | E19: =D19-C19 -> -0.02 | F19: ADJ
A20: 900.14 | B20: 925 - (FV-78) Decrease in respondents, but increase in responses per respondent | C20: 0.28 | D20: 1.25 | E20: =D20-C20 -> 0.97 | F20: ADJ
A21: 7 CFR | B21: Certificate of Resolution
A22: 900.14 | B22: 916 - Nectarines (FV-306-A) Decrease in respondents | C22: 0.04 | D22: 0.00 | E22: =D22-C22 -> -0.04 | F22: ADJ
A23: 900.14 | B23: 917 - Peaches (FV-306-B) Decrease in respondents | C23: 0.04 | D23: 0.00 | E23: =D23-C23 -> -0.04 | F23: ADJ
A24: 900.14 | B24: 922 - Apricots (FV-151A) Decrease in respondents | C24: 0.39 | D24: 0.28 | E24: =D24-C24 -> -0.11 | F24: ADJ
A25: 900.14 | B25: 923 - Cherries (FV-21A) Decrease in respondents | C25: 0.83 | D25: 0.77 | E25: =D25-C25 -> -0.06 | F25: ADJ
A26: 900.14 | B26: 924 - Prunes (FV-14A) Decrease in respondents | C26: 0.14 | D26: 0.08 | E26: =D26-C26 -> -0.06 | F26: ADJ
A27: 7 CFR | B27: Producer Referendum | F27: ADJ
A28: 900.14 906.55 | B28: 905 - TX Citrus (FV-83) Decrease in respondents | C28: 12.10 | D28: 10.07 | E28: =D28-C28 -> -2.03 | F28: ADJ
A29: 900.14 915.64 | B29: 915 - Avocados (FV-98-A) Form obsoleted | C29: 0.00 | D29: 0.00 | E29: 0.00 | F29: PC
A30: 900.14 | B30: 916 - Nectarines (FV-304-A) Obsolete - Encompassed with FV-304B into a single ballot FV-304 | C30: 41.66 | D30: 0.00 | E30: =D30-C30 -> -41.66 | F30: ADJ
A31: 900.14 | B31: 917 - Peaches & Pears (FV-304-B) Obsolete - Encompassed w/FV-304A into a single ballot FV-304 | C31: 46.28 | D31: 0.00 | E31: -46.28 | F31: ADJ
A32: 900.14 916.64 917.61 | B32: 916/917 Nectarines, Peaches and Pears (FV-304) | C32: 0.00 | D32: 41.25 | E32: 41.25 | F32: ADJ
A33: 900.14 920.63 | B33: 920 - Kiwifruit (FV-70) Decrease in respondents | C33: 12.38 | D33: 10.73 | E33: -1.65 | F33: ADJ
A34: 900.14 922.64 | B34: 923 - Apricots (FV-150) Decrease in respondents | C34: 14.96 | D34: 4.95 | E34: =D34-C34 -> -10.01 | F34: ADJ
A35: 900.14 924.64 | B35: 924 - Fresh Prunes (FV-13) Decrease in respondents | C35: 11.83 | D35: 3.08 | E35: -8.75 | F35: ADJ
A36: 900.14 924.64 | B36: 924 - Fresh Prunes Cooperative Association Referendum Ballot (FV-13A) Dec. in respondents | C36: .11 | D36: 0 | E36: -0.11 | F36: ADJ
A37: 900.14 924.64 | B37: 924 - Fresh Prunes Cooperative Association (FV-13B) Certificate of Resolution Decrease in respondents | C37: 0.03 | D37: 0 | E37: -0.03 | F37: ADJ
A38: 7 CFR | B38: Certificate of Privilege
A39: 905.147 | B39: 905 - Citrus Grown in Florida Application for a Repacking Certificate of Privilege Decrease in hours per response | C39: 1.20 | D39: 0.830 | E39: =D39-C39 -> -0.37 | F39: ADJ
A40: 906.120(d) | B40: 906 - TX Citrus (No form number) Decrease in respondents | C40: 1.33 | D40: 1.16 | E40: -0.17 | F40: ADJ
A41: 7 CFR | B41: Special Purpose Shipment
A42: 905.147 | B42: 905 - Citrus Grown in Florida Report of Special Purpose Shipment Certified Organic Citrus (CAC 201) Dec. in hrs. per response. | C42: 0.48 | D42: 0.33 | E42: -0.15 | F42: ADJ
A43: 7 CFR | B43: Recordkeeping
A44: 906.51(c) | B44: 906 - TX Citrus Decrease in recordkeepers | C44: 2.50 | D44: 2.20 | E44: =D44-C44 -> -0.30 | F44: ADJ
A45: 920.60(c) | B45: 915 - Kiwifruit Decrease in recordkeepers | C45: 20.35 | D45: 13.20 | E45: =D45-C45 -> -7.15 | F45: ADJ
A46: 927.70 | B46: 927 - Processed Pears Increase in recordkeepers | C46: 17.50 | D46: 26.25 | E46: =D46-C46 -> 8.75 | F46: ADJ
A47: 7 CFR | B47: Packout Report
A48: 927.70 927.125 | B48: 927 - Fresh Pears Handler Packout Report (No form number) Increase in number of responses | C48: 1,125.00 | D48: 1,425.00 | E48: =D48-C48 -> 300.00 | F48: ADJ
A49: 927.70 927.125 | B49: 927 - Fresh Pears Organic Handler Packout Report (No form number) NEW FORM | C49: 0.00 | D49: 52.50 | E49: =D49-C49 -> 52.50 | F49: PC
A50: 7 CFR | B50: 905 - Citrus Grown in Florida
A51: 905.50 | B51: Florida Citrus Crop Prospects (No form number) Decrease in hours per response | C51: 9.84 | D51: 6.81 | E51: =D51-C51 -> -3.03 | F51: ADJ
A52: 905.153 | B52: Report of Red Grapefruit Shipments by Day Regulation Week (CAC 302) Increase in hours per response | C52: 288.75 | D52: 479.33 | E52: 190.58 | F52: ADJ
A53: 905.153 | B53: New Handler Application (CAC 303) Increase in hours per response | C53: .03 | D53: .04 | E53: 0.01 | F53: ADJ
A54: 905.142 | B54: Animal Feed (No form number) Form obsoleted | C54: 0 | D54: 0 | E54: 0.00 | F54: PC
A55: 905.145 | B55: Certificate of Certain Shipments (No form number) Form obsoleted | C55: 0 | D55: 0 | E55: 0.00 | F55: PC
A56: 7 CFR | B56: 906 - Texas Citrus
A57: 906.51 | B57: Diversion Report (No form number) Decrease in respondents | C57: 26.56 | D57: 23.24 | E57: =D57-C57 -> -3.32 | F57: ADJ
A58: 906.51 | B58: Handler Application (No form number) Decrease in respondents | C58: 0.10 | D58: 0.09 | E58: =D58-C58 -> -0.01 | F58: ADJ
A59: 906.51(a) | B59: Confidential Citrus Crop Questionnaire (No form number) Decrease in respondents | C59: 91.74 | D59: 76.31 | E59: =D59-C59 -> -15.43 | F59: ADJ
A60: 906.51(b), 906.151(a), (b) and (c) | B60: Seller/Buyer Certificate (No form number) Decrease in respondents | C60: 249 | D60: 139.44 | E60: =D60-C60 -> -109.56 | F60: ADJ
A61: 906.123(b) | B61: Application & Certification Citrus By-Products Purchase Agreement (No form number) Decrease in respondents | C61: 0.92 | D61: 0.63 | E61: -0.29 | F61: ADJ
A62: 906.123(b) | B62: Information Data Sheet on Citrus Processor (No form number) Decrease in respondents | C62: 2.32 | D62: 1.58 | E62: -0.74 | F62: ADJ
A63: 7 CFR | B63: 916 - Nectarines
A64: 916.64 | B64: Producer List for Referendum (FV-279) Increase in respondents and number of responses | C64: 62.5 | D64: 118.75 | E64: =D64-C64 -> 56.25 | F64: ADJ
A65: 7 CFR | B65: 917 - Peaches
A66: 917.61 | B66: Producers List for Referendum (FV-279A) Increase in respondents and number of responses | C66: 62.5 | D66: 118.75 | E66: 56.25 | F66: ADJ
A67: 7 CFR | B67: 920 - Kiwifruit
A68: 920.110 | B68: Application for Inspection (Waiver Form) (No form number) Decrease in respondents | C68: 3.70 | D68: 2.40 | E68: =D68-C68 -> -1.30 | F68: ADJ
A69: 920.160(a) | B69: Shipment Report (No form number) Decrease in respondents | C69: 148.00 | D69: 96.00 | E69: -52.00 | F69: ADJ
A70: 920.160(b) | B70: Kiwifruit Inventory Shipment System (Includes add, deduct and shipment forms) (No form number) Decrease in respondents | C70: 222.00 | D70: 144.00 | E70: -78.00 | F70: ADJ
A71: 920.160(d) | B71: Kiwifruit Inventory Shipment System Price/Shipment Report (MERGED from 0581-0255) | C71: 0.00 | D71: 420.00 | E71: 420.00 | F71: PC
A72: 920.303 | B72: Kiwifruit Restyle Verification Form (No form number) Decrease in respondents | C72: 1,387.50 | D72: 900.00 | E72: -487.50 | F72: ADJ
A73: 7 CFR | B73: 923 - Apricots
A74: 922.55 922.111 | B74: Application for Waiver of Inspection at Time of Shipment (No form number) Decrease in respondents | C74: 0.25 | D74: 0.08 | E74: =D74-C74 -> -0.17 | F74: ADJ
A75: 922.55 922.111 | B75: Waiver of Inspection Permit (No form number) Decrease in respondents | C75: 1.25 | D75: 0.42 | E75: -0.83 | F75: ADJ
A76: 7 CFR | B76: 924 - Fresh Prunes
A77: 924.160 | B77: Handler Statement for WA-OR Fresh Prunes (Form No. 1) Form not currently used | C77: 2.92 | D77: 0.00 | E77: -2.92 | F77: ADJ
A78: 7 CFR | B78: 925 - California Desert Grapes
A79: 925.160 | B79: End of Season Shipment Report (CDGAC-3) Decrease in respondents | C79: 10.00 | D79: 7.50 | E79: =D79-C79 -> -2.50 | F79: ADJ
A80: 925.50 | B80: Grape Acreage Report (CDGAC-7) Increase in respondents and hours per response | C80: 4.75 | D80: 25.00 | E80: =D80-C80 -> 20.25 | F80: ADJ
A81: 7 CFR | B81: 927 - Pears Grown in Oregon and Washington (Fresh Pears)
A82: 927.70 927.125 | B82: Handler Statement of Fresh Pear Shipments (No form number) Increase in respondents | C82: 825.00 | D82: 937.50 | E82: =D82-C82 -> 112.50 | F82: ADJ
A83: 7 CFR | B83: 927 - Pears Grown in Oregon and Washington Processed Pears)
A84: 927.70 927.125 | B84: Assessment Report (No form number) Increase in respondents, but decrease in number of responses | C84: 75.00 | D84: 56.25 | E84: =D84-C84 -> -18.75 | F84: ADJ
A85: 7 CFR | B85: 929 - Cranberries
A86: 929.62 929.105 | B86: Processor Inventory Report (PIR) Decrease in hours per response | C86: 96.00 | D86: 48 | E86: -48.00 | F86: ADJ
A87: 929.62 929.105 | B87: Handler Inventory Report - Amended (HIR amended) Form obsoleted | C87: 1.98 | D87: 0 | E87: -1.98 | F87: PC
A88: 929.62 929.105 | B88: Handler Inventory Report - Supplement (HIR supplement) Form obsoleted | C88: 200 | D88: 0 | E88: -200.00 | F88: PC
A89: 929.66 | B89: Letter of Acknowledgement (No form number) NEW FORM | C89: 0.00 | D89: 10.02 | E89: 10.02 | F89: PC
A90: TOTAL | C90: =SUM(C4:C89) -> 4,608.33 | D90: =SUM(D4:D89) -> 4,790.32 | E90: =SUM(E4:E89) -> 113.74
